bitfinex/quotes_BTCUSD_20250713
["timestamp","ask_amount","ask_price","bid_price","bid_amount"]
[1752425729347,0.4168427,118510.0,118500.0,0.26967]
[1752425729747,0.73596414,118510.0,118500.0,0.26967]
[1752425729948,0.73596414,118510.0,118500.0,0.30356114]
[1752425729949,0.73796414,118510.0,118500.0,0.30356114]
[1752425730794,0.73796414,118510.0,118500.0,0.29857114]
[1752425730795,0.77434414,118510.0,118500.0,0.29857114]
[1752425732318,0.70713137,118510.0,118500.0,0.29857114]
[1752425732548,0.70713137,118510.0,118500.0,0.30356114]
[1752425735457,0.70713137,118510.0,118500.0,0.50580114]
[1752425736756,0.70713137,118510.0,118500.0,0.23612114]
[1752425737197,0.35162993,118510.0,118500.0,0.23612114]
[1752425737402,0.35162993,118510.0,118500.0,0.57367114]
[1752425738075,0.35162993,118510.0,118500.0,0.83827114]
[1752425738788,0.67075137,118510.0,118500.0,0.83827114]
[1752425739799,0.68905137,118510.0,118500.0,0.83827114]
[1752425740610,0.36992993,118510.0,118500.0,0.83827114]
[1752425740873,0.68905137,118510.0,118500.0,0.83827114]
[1752425741081,0.70823137,118510.0,118500.0,0.83328114]
[1752425750875,0.70823137,118510.0,118500.0,0.83827114]
[1752425751969,0.70625137,118510.0,118500.0,0.83827114]
[1752425761604,0.70823137,118510.0,118500.0,0.83827114]
[1752425763577,0.35162993,118510.0,118500.0,0.83827114]
[1752425764891,0.35162993,118510.0,118500.0,0.85647114]
[1752425765093,0.35162993,118510.0,118500.0,0.83827114]
[1752425768708,0.67075137,118510.0,118500.0,0.83827114]
[1752425771164,0.01162993,118510.0,118500.0,0.83827114]
[1752425771363,0.01162993,118510.0,118500.0,0.85617114]
[1752425771997,0.01162993,118510.0,118500.0,0.83827114]
[1752425772863,0.01162993,118510.0,118500.0,0.87327114]
[1752425773494,0.003,118510.0,118500.0,1.27782251]
[1752425776121,0.003,118510.0,118500.0,0.95870107]
[1752425776534,0.33972144,118510.0,118500.0,0.83827114]
[1752425777321,0.0206,118510.0,118500.0,0.83827114]
[1752425778096,0.003,118510.0,118500.0,0.83827114]
[1752425778357,0.003,118510.0,118500.0,0.85517114]
[1752425779400,0.003,118510.0,118500.0,0.83827114]
[1752425780462,0.0197,118510.0,118500.0,0.83827114]
[1752425782931,0.003,118510.0,118500.0,0.83827114]
[1752425784015,0.0197,118510.0,118500.0,0.83827114]
[1752425786119,0.003,118510.0,118500.0,0.83827114]
[1752425787370,0.503,118510.0,118500.0,0.83827114]
[1752425787807,0.503,118510.0,118500.0,0.83837114]
[1752425790624,0.85782144,118510.0,118500.0,0.83797114]
[1752425790857,0.85987144,118510.0,118500.0,0.83298114]
[1752425791380,0.86282144,118510.0,118500.0,0.83298114]
[1752425795400,0.54075,118510.0,118500.0,0.83298114]
[1752425795616,0.85987144,118510.0,118500.0,0.83298114]
[1752425798770,1.19987144,118510.0,118500.0,0.83298114]
[1752425799004,1.20283144,118510.0,118500.0,0.67197]
[1752425802369,1.31247434,118510.0,118500.0,0.53989]
[1752425802591,1.31247434,118510.0,118500.0,0.67193]
[1752425805892,1.19987144,118510.0,118500.0,0.67718]
[1752425806111,1.19987144,118510.0,118500.0,0.74491293]
[1752425811287,1.19987144,118510.0,118500.0,0.73966293]
[1752425813411,0.88075,118510.0,118500.0,0.73966293]
[1752425813623,1.19987144,118510.0,118500.0,0.73966293]
[1752425818620,0.88075,118510.0,118500.0,0.73966293]
[1752425818832,1.19987144,118510.0,118500.0,0.73966293]
[1752425819418,0.86335,118510.0,118500.0,0.74492293]
[1752425819549,0.8613,118510.0,118500.0,0.74492293]
[1752425820372,0.8782,118510.0,118500.0,0.74492293]
[1752425822521,0.8613,118510.0,118500.0,0.74492293]
[1752425822733,0.843,118510.0,118500.0,0.74492293]
[1752425823789,0.843,118510.0,118500.0,1.06404437]
[1752425824046,0.843,118510.0,118500.0,1.09794437]
[1752425824254,0.843,118510.0,118500.0,0.77882293]
[1752425828185,0.503,118510.0,118500.0,0.77882293]
[1752425828615,0.503,118510.0,118500.0,1.09794437]
[1752425829254,0.503,118510.0,118500.0,0.77882293]
[1752425830347,0.503,118510.0,118500.0,0.76222293]
[1752425832921,0.503,118510.0,118500.0,0.74492293]
[1752425839491,0.85792144,118510.0,118500.0,0.74492293]
[1752425839707,0.85990144,118510.0,118500.0,0.74492293]
[1752425839919,0.63078,118510.0,118500.0,0.74492293]
[1752425840781,0.63078,118510.0,118500.0,0.74168293]
[1752425841617,0.63078,118510.0,118500.0,0.73966293]
[1752425841848,0.94990144,118510.0,118500.0,0.73966293]
[1752425844798,0.63078,118510.0,118500.0,0.73966293]
[1752425846182,0.63078,118510.0,118500.0,0.74291293]
[1752425847013,0.63078,118510.0,118500.0,0.73966293]
[1752425847778,0.94990144,118510.0,118500.0,0.73966293]
[1752425853045,0.86972497,118510.0,118500.0,0.73966293]
[1752425854331,0.63078,118510.0,118500.0,0.73966293]
[1752425854517,0.86972497,118510.0,118500.0,0.73966293]
[1752425854746,0.86972497,118510.0,118500.0,0.74181293]
[1752425854973,0.86972497,118510.0,118500.0,0.74506293]
[1752425855186,0.86774497,118510.0,118500.0,0.74506293]
[1752425856325,0.86973497,118510.0,118500.0,0.74506293]
[1752425856967,0.6108,118510.0,118500.0,0.74506293]
[1752425857181,0.83194497,118510.0,118500.0,0.74506293]
[1752425857389,0.84974497,118510.0,118500.0,0.74506293]
[1752425858026,0.86634497,118510.0,118500.0,0.74506293]
[1752425861213,0.86834497,118510.0,118500.0,0.74506293]
[1752425861429,1.20834497,118510.0,118500.0,0.74506293]
[1752425861644,1.20834497,118510.0,118500.0,0.73966293]
[1752425862507,0.9694,118510.0,118500.0,0.73966293]
[1752425862721,1.20834497,118510.0,118500.0,0.73966293]
[1752425863822,1.21135497,118510.0,118500.0,0.73966293]
[1752425864042,1.45029994,118510.0,118500.0,0.73966293]
[1752425864252,1.21135497,118510.0,118500.0,0.73966293]
[1752425866039,1.20834497,118510.0,118500.0,0.73966293]
[1752425869544,1.21135497,118510.0,118500.0,0.73966293]
[1752425870158,1.45029994,118510.0,118500.0,0.73966293]
[1752425870563,1.21135497,118510.0,118500.0,0.73966293]
[1752425871243,0.97241,118510.0,118500.0,0.73966293]
[1752425871445,1.44728994,118510.0,118500.0,0.73966293]
[1752425872197,1.20834497,118510.0,118500.0,0.73966293]
[1752425876207,0.9694,118510.0,118500.0,0.73966293]
[1752425876447,1.20834497,118510.0,118500.0,0.73966293]
[1752425879476,0.9694,118510.0,118500.0,0.73966293]
[1752425879654,1.20834497,118510.0,118500.0,0.73966293]
[1752425881463,0.9694,118510.0,118500.0,0.73966293]
[1752425881682,1.20834497,118510.0,118500.0,0.73966293]
[1752425883199,0.9508,118510.0,118500.0,0.74465293]
[1752425883410,1.17194497,118510.0,118500.0,0.74465293]
[1752425884033,1.19004497,118510.0,118500.0,0.74465293]
[1752425885266,1.20704497,118510.0,118500.0,0.74465293]
[1752425885910,1.20909497,118510.0,118500.0,0.74465293]
[1752425887985,0.97015,118510.0,118500.0,0.74465293]
[1752425888188,1.20909497,118510.0,118500.0,0.74465293]
[1752425892902,1.20909497,118510.0,118500.0,0.74170293]
[1752425893543,1.20909497,118510.0,118500.0,0.73966293]
[1752425893762,1.44803994,118510.0,118500.0,0.73966293]
[1752425894636,1.53346987,118510.0,118500.0,0.67193]
[1752425894845,1.53640987,118510.0,118500.0,0.67193]
[1752425899172,1.53634361,118510.0,118500.0,0.67193]
[1752425901596,1.53340361,118510.0,118500.0,0.67193]
[1752425911052,1.29445864,118510.0,118500.0,0.67193]
[1752425911278,1.29445864,118510.0,118500.0,0.73943293]
[1752425911482,1.29445864,118510.0,118500.0,0.74477293]
[1752425911693,1.29240864,118510.0,118500.0,0.74477293]
[1752425916295,1.29444864,118510.0,118500.0,0.74157293]
[1752425916511,1.29444864,118510.0,118500.0,0.73943293]
[1752425916723,1.53339361,118510.0,118500.0,0.73943293]
[1752425918935,1.53636361,118510.0,118500.0,0.73943293]
[1752425919419,1.53339361,118510.0,118500.0,0.73943293]
[1752425921242,1.05550367,118510.0,118500.0,0.73943293]
[1752425921464,1.53339361,118510.0,118500.0,0.73943293]
[1752425922440,1.58400361,118510.0,118500.0,0.73943293]
[1752425922674,1.53339361,118510.0,118500.0,0.73943293]
[1752425923492,1.05550367,118510.0,118500.0,0.73943293]
[1752425923701,1.29444864,118510.0,118500.0,0.73943293]
[1752425924512,1.53339361,118510.0,118500.0,0.73943293]
[1752425925123,1.05550367,118510.0,118500.0,0.73943293]
[1752425925329,1.53339361,118510.0,118500.0,0.73943293]
[1752425925691,2.63294464,118510.0,118500.0,0.33765]
[1752425925897,2.9194008,118510.0,118500.0,0.46038328]
[1752425926107,2.9447118,118510.0,118500.0,0.13126]
[1752425926265,0.67651,118500.0,118490.0,0.00014931]
[1752425926465,1.41733393,118500.0,118490.0,0.00014931]
[1752425926679,1.52089298,118500.0,118490.0,0.00014931]
[1752425926892,0.6259,118470.0,118460.0,0.1]
[1752425927091,1.09007513,118470.0,118460.0,0.10049814]
[1752425927496,0.86834013,118470.0,118460.0,0.23165814]
[1752425927707,0.89310712,118470.0,118460.0,0.23165814]
[1752425927918,0.86789415,118470.0,118460.0,0.27505395]
[1752425928309,1.11789415,118470.0,118460.0,0.27505395]
[1752425928561,1.07858631,118470.0,118460.0,0.27505395]
[1752425928764,1.05960729,118470.0,118460.0,0.27505395]
[1752425928966,1.06360729,118470.0,118460.0,0.27605395]
[1752425929181,1.08782026,118470.0,118460.0,0.27605395]
[1752425929336,1.08782026,118470.0,118460.0,0.23265814]
[1752425929753,1.08982026,118470.0,118460.0,0.23265814]
[1752425930881,1.12334013,118470.0,118460.0,0.23265814]
[1752425931678,1.14918567,118470.0,118460.0,0.23265814]
[1752425933871,1.14911034,118470.0,118460.0,0.23265814]
[1752425934091,0.83015798,118470.0,118460.0,0.27615395]
[1752425934291,1.23911034,118470.0,118460.0,0.27615395]
[1752425934713,1.23911034,118470.0,118460.0,0.23265814]
[1752425948991,1.39859166,118470.0,118460.0,0.23265814]
[1752425949422,1.41661179,118470.0,118460.0,0.23265814]
[1752425950555,1.65582863,118470.0,118460.0,0.23265814]
[1752425950969,1.41661179,118470.0,118460.0,0.23265814]
[1752425951179,1.41661179,118470.0,118460.0,0.23006659]
[1752425953053,1.41661179,118470.0,118460.0,0.27330325]
[1752425953936,2.6401776,118470.0,118460.0,0.22163538]
[1752425954146,2.68234715,118470.0,118460.0,0.19212613]
[1752425954353,2.71242361,118470.0,118460.0,0.18369492]
[1752425954558,2.73396587,118470.0,118460.0,0.18369492]
[1752425954760,2.73396587,118470.0,118460.0,0.14575446]
[1752425954956,2.73196587,118470.0,118460.0,0.14575446]
[1752425955171,1.90882513,118470.0,118460.0,0.13832325]
[1752425955382,0.25,118440.0,118430.0,0.01635896]
[1752425955587,1.35148669,118440.0,118430.0,0.01648559]
[1752425955797,1.12584479,118440.0,118430.0,0.01648559]
[1752425956558,1.12684479,118440.0,118430.0,0.14748559]
[1752425956981,1.15416779,118440.0,118430.0,0.14848559]
[1752425957908,1.17226825,118440.0,118430.0,0.14848559]
[1752425958106,1.17523825,118440.0,118430.0,0.14848559]
[1752425959705,1.21682505,118440.0,118430.0,0.14848559]
[1752425959918,1.22429373,118440.0,118430.0,0.14848559]
[1752425960785,1.23265753,118440.0,118430.0,0.14848559]
[1752425961210,1.28326753,118440.0,118430.0,0.14848559]
[1752425961416,1.28226753,118440.0,118430.0,0.14848559]
[1752425961631,1.28426753,118440.0,118430.0,0.14848559]
[1752425961864,1.28226753,118440.0,118430.0,0.14748559]
[1752425962067,1.28626753,118440.0,118430.0,0.14848559]
[1752425963635,1.29470998,118440.0,118430.0,0.14848559]
[1752425963850,1.56159537,118440.0,118430.0,0.14848559]
[1752425964073,1.56159523,118440.0,118430.0,0.14848559]
[1752425964291,1.57003803,118440.0,118430.0,0.14848559]
[1752425964509,1.62359567,118440.0,118430.0,0.14848559]
[1752425964735,1.62359631,118440.0,118430.0,0.14848559]
[1752425964959,1.60671027,118440.0,118430.0,0.14848559]
[1752425965562,2.10671027,118440.0,118430.0,0.14848559]
[1752425965811,2.08138222,118440.0,118430.0,0.14848559]
[1752425966031,2.08982474,118440.0,118430.0,0.14848559]
[1752425966671,2.0982674,118440.0,118430.0,0.14848559]
[1752425967322,2.1067102,118440.0,118430.0,0.14848559]
[1752425967531,2.0982674,118440.0,118430.0,0.14848559]
[1752425967950,2.08982474,118440.0,118430.0,0.14848559]
[1752425968157,2.0982674,118440.0,118430.0,0.14848559]
[1752425968413,2.08982474,118440.0,118430.0,0.14848559]
[1752425968615,2.0982674,118440.0,118430.0,0.14848559]
[1752425968824,2.08982474,118440.0,118430.0,0.14848559]
[1752425969033,2.09826733,118440.0,118430.0,0.14848559]
[1752425969448,2.07603605,118440.0,118430.0,0.14848559]
[1752425969873,2.08447878,118440.0,118430.0,0.14848559]
[1752425970079,2.07600316,118440.0,118430.0,0.14848559]
[1752425970287,2.10611578,118440.0,118430.0,0.14848559]
[1752425970506,2.08923067,118440.0,118430.0,0.14848559]
[1752425970714,2.07331509,118440.0,118430.0,0.14848559]
[1752425970894,2.04706319,118440.0,118430.0,0.14848559]
[1752425971094,1.39253873,118440.0,118430.0,0.14848559]
[1752425971297,2.01485984,118440.0,118430.0,0.14848559]
[1752425971510,2.00641739,118440.0,118430.0,0.14848559]
[1752425972268,2.01425987,118440.0,118430.0,0.14848559]
[1752425972673,1.98414725,118440.0,118430.0,0.14848559]
[1752425972879,1.99258984,118440.0,118430.0,0.14848559]
[1752425973135,1.98414725,118440.0,118430.0,0.14848559]
[1752425973310,2.01694787,118440.0,118430.0,0.14848559]
[1752425973531,2.00850535,118440.0,118430.0,0.14848559]
[1752425973736,2.0169478,118440.0,118430.0,0.14848559]
[1752425973943,2.02539039,118440.0,118430.0,0.14848559]
[1752425974260,2.0169478,118440.0,118430.0,0.14848559]
[1752425974470,1.98117725,118440.0,118430.0,0.14848559]
[1752425974668,2.00928281,118440.0,118430.0,0.16859427]
[1752425974903,2.00928281,118440.0,118430.0,0.15371559]
[1752425975103,2.00828281,118440.0,118430.0,0.15055559]
[1752425975322,2.01328281,118440.0,118430.0,0.14948559]
[1752425975522,2.00544033,118440.0,118430.0,0.14948559]
[1752425975753,2.01328177,118440.0,118430.0,0.14948559]
[1752425976576,1.37504501,118440.0,118430.0,0.14948559]
[1752425976785,2.01328177,118440.0,118430.0,0.14948559]
[1752425978007,2.01328177,118440.0,118430.0,0.16478027]
[1752425978213,1.96816775,118440.0,118430.0,0.14948559]
[1752425978424,1.96032564,118440.0,118430.0,0.14948559]
[1752425978640,1.26528986,118440.0,118430.0,0.18921559]
[1752425978850,0.58234167,118440.0,118430.0,0.18921559]
[1752425979060,0.58234167,118440.0,118430.0,0.20816727]
[1752425979061,0.87887275,118440.0,118430.0,0.20816727]
[1752425979489,1.21887275,118440.0,118430.0,0.20816727]
[1752425979698,1.21587275,118440.0,118430.0,0.20716727]
[1752425979909,0.89675437,118440.0,118430.0,0.20716727]
[1752425980121,1.21687275,118440.0,118430.0,0.20716727]
[1752425980326,1.55230268,118440.0,118430.0,0.18821559]
[1752425980949,1.54730268,118440.0,118430.0,0.18721559]
[1752425981365,1.54830268,118440.0,118430.0,0.18821559]
[1752425982184,1.29830268,118440.0,118430.0,0.18821559]
[1752425982394,1.21287275,118440.0,118430.0,0.18821559]
[1752425982611,1.21287275,118440.0,118430.0,0.20706727]
[1752425983438,0.89375437,118440.0,118430.0,0.20706727]
[1752425983646,1.21287275,118440.0,118430.0,0.20706727]
[1752425984274,1.18644138,118440.0,118430.0,0.20706727]
[1752425987792,0.867323,118440.0,118430.0,0.20706727]
[1752425987927,1.18644138,118440.0,118430.0,0.20706727]
[1752425989218,0.867323,118440.0,118430.0,0.17252727]
[1752425989414,1.18644138,118440.0,118430.0,0.20682727]
[1752425990636,0.867323,118440.0,118430.0,0.18932727]
[1752425990837,1.18644138,118440.0,118430.0,0.18932727]
[1752425991097,1.18644138,118440.0,118430.0,0.17252727]
[1752425992528,1.27187131,118440.0,118430.0,0.15367559]
[1752425994541,0.95275293,118440.0,118430.0,0.15367559]
[1752425994737,1.27187131,118440.0,118430.0,0.02271559]
[1752425995017,1.28957131,118440.0,118430.0,0.02271559]
[1752425995214,1.62896969,118440.0,118430.0,0.15363559]
[1752425995415,1.62896969,118440.0,118430.0,0.03810927]
[1752425995616,1.62896969,118440.0,118430.0,0.14840559]
[1752425996061,1.64654054,118440.0,118430.0,0.14840559]
[1752425996239,1.73654054,118440.0,118430.0,0.01748559]
[1752425996425,1.73654054,118440.0,118430.0,0.14840559]
[1752425996632,1.74498299,118440.0,118430.0,0.14840559]
[1752425997089,1.73654054,118440.0,118430.0,0.14840559]
[1752425997653,1.73454054,118440.0,118430.0,0.14740559]
[1752425997856,1.73854054,118440.0,118430.0,0.14840559]
[1752425998122,1.74898306,118440.0,118430.0,0.14840559]
[1752425998418,1.76489864,118440.0,118430.0,0.14840559]
[1752425998652,1.77134116,118440.0,118430.0,0.14840559]
[1752425998838,1.77434116,118440.0,118430.0,0.14940559]
[1752425999005,1.78278382,118440.0,118430.0,0.14940559]
[1752425999212,1.77434116,118440.0,118430.0,0.14940559]
[1752425999418,1.78278375,118440.0,118430.0,0.14940559]
[1752425999622,1.77434116,118440.0,118430.0,0.14940559]
[1752425999837,1.78278389,118440.0,118430.0,0.14940559]
[1752426000047,1.77434116,118440.0,118430.0,0.14940559]
[1752426000328,1.79122655,118440.0,118430.0,0.14940559]
[1752426000527,1.8008799,118440.0,118430.0,0.14940559]
[1752426000738,1.79243731,118440.0,118430.0,0.14940559]
[1752426000916,1.85151004,118440.0,118430.0,0.14940559]
[1752426001119,1.84306731,118440.0,118430.0,0.14940559]
[1752426001315,1.85150997,118440.0,118430.0,0.14940559]
[1752426001545,1.8599527,118440.0,118430.0,0.14940559]
[1752426001719,1.85995284,118440.0,118430.0,0.14940559]
[1752426001924,2.03725816,118440.0,118430.0,0.14940559]
[1752426002124,1.86839629,118440.0,118430.0,0.14940559]
[1752426002329,1.8515099,118440.0,118430.0,0.14940559]
[1752426002526,1.86839558,118440.0,118430.0,0.14940559]
[1752426002731,1.85995263,118440.0,118430.0,0.14940559]
[1752426002918,1.8515099,118440.0,118430.0,0.14940559]
[1752426003116,1.86839579,118440.0,118430.0,0.14940559]
[1752426003309,1.85995277,118440.0,118430.0,0.14940559]
[1752426003551,1.8599527,118440.0,118430.0,0.14940559]
[1752426003947,1.87683866,118440.0,118430.0,0.14940559]
[1752426004147,2.0893515,118440.0,118430.0,0.14940559]
[1752426004852,2.11197515,118440.0,118430.0,0.14940559]
[1752426005662,2.10353228,118440.0,118430.0,0.14940559]
[1752426006020,0.2685,118410.0,118400.0,0.56112252]
[1752426006373,0.65454831,118410.0,118400.0,0.56337261]
[1752426006705,0.67987531,118410.0,118400.0,0.63193625]
[1752426007127,0.68185531,118410.0,118400.0,0.56437261]
[1752426007372,0.69837531,118410.0,118400.0,0.69533261]
[1752426008484,0.37925693,118410.0,118400.0,0.69533261]
[1752426008696,0.69937531,118410.0,118400.0,0.69733261]
[1752426010050,0.38025693,118410.0,118400.0,0.69733261]
[1752426010292,0.69937531,118410.0,118400.0,0.78276254]
[1752426012099,0.69937531,118410.0,118400.0,0.69733261]
[1752426013451,0.71905531,118410.0,118400.0,0.69733261]
[1752426015833,0.73359616,118410.0,118400.0,0.69213261]
[1752426016187,0.78422616,118410.0,118400.0,0.69213261]
[1752426016804,0.78322616,118410.0,118400.0,0.68913261]
[1752426017213,1.10434454,118410.0,118400.0,0.69013261]
[1752426017413,1.44434454,118410.0,118400.0,0.68913261]
[1752426017636,1.44334454,118410.0,118400.0,0.68913261]
[1752426017763,1.44634454,118410.0,118400.0,0.69013261]
[1752426017969,1.44234454,118410.0,118400.0,0.68913261]
[1752426018413,1.44937454,118410.0,118400.0,0.69013261]
[1752426019149,1.45137454,118410.0,118400.0,0.69113261]
[1752426019560,1.44937454,118410.0,118400.0,0.69013261]
[1752426020058,1.45237454,118410.0,118400.0,0.69113261]
[1752426021194,1.13325616,118410.0,118400.0,0.69113261]
[1752426021692,1.45237454,118410.0,118400.0,0.69113261]
[1752426022190,1.45237454,118410.0,118400.0,0.77656254]
[1752426022326,1.45237454,118410.0,118400.0,0.69113261]
[1752426022933,1.13325616,118410.0,118400.0,0.69113261]
[1752426023346,1.45237454,118410.0,118400.0,0.69113261]
[1752426023554,1.13325616,118410.0,118400.0,0.69113261]
[1752426025467,1.45237454,118410.0,118400.0,0.69113261]
[1752426025882,1.46081913,118410.0,118400.0,0.69113261]
[1752426026100,1.46926386,118410.0,118400.0,0.69113261]
[1752426026530,1.46081913,118410.0,118400.0,0.69113261]
[1752426026750,1.47673264,118410.0,118400.0,0.69113261]
[1752426027173,1.4851773,118410.0,118400.0,0.69113261]
[1752426027383,1.49362203,118410.0,118400.0,0.69113261]
[1752426027621,1.51169519,118410.0,118400.0,0.69113261]
[1752426027830,1.53067421,118410.0,118400.0,0.69113261]
[1752426028033,1.51378482,118410.0,118400.0,0.69113261]
[1752426028452,1.52222948,118410.0,118400.0,0.69113261]
[1752426028665,1.50415632,118410.0,118400.0,0.69113261]
[1752426029151,1.49571166,118410.0,118400.0,0.69113261]
[1752426029368,1.51378825,118410.0,118400.0,0.69113261]
[1752426030445,1.52223284,118410.0,118400.0,0.69113261]
[1752426030652,1.52223291,118410.0,118400.0,0.69113261]
[1752426030864,1.52223284,118410.0,118400.0,0.69113261]
[1752426031293,1.52223291,118410.0,118400.0,0.69113261]
[1752426031430,1.52223284,118410.0,118400.0,0.69113261]
[1752426031642,1.51378825,118410.0,118400.0,0.69113261]
[1752426032823,1.52223284,118410.0,118400.0,0.69113261]
[1752426033638,1.51378825,118410.0,118400.0,0.69113261]
[1752426034066,1.52223284,118410.0,118400.0,0.69113261]
[1752426034476,0.87555149,118410.0,118400.0,0.69113261]
[1752426034687,1.51378825,118410.0,118400.0,0.69113261]
[1752426035102,1.51075825,118410.0,118400.0,0.70461021]
[1752426035307,1.48640015,118410.0,118400.0,0.70461021]
[1752426035947,0.84816339,118410.0,118400.0,0.70461021]
[1752426036158,1.48640015,118410.0,118400.0,0.70461021]
[1752426036580,1.48640015,118410.0,118400.0,0.69113261]
[1752426037002,1.48942015,118410.0,118400.0,0.69113261]
[1752426037214,1.51075825,118410.0,118400.0,0.69113261]
[1752426037424,0.87252149,118410.0,118400.0,0.69113261]
[1752426037628,1.51075825,118410.0,118400.0,0.69113261]
[1752426038373,1.51377825,118410.0,118400.0,0.69113261]
[1752426038610,1.48942015,118410.0,118400.0,0.69113261]
[1752426038810,1.52222291,118410.0,118400.0,0.69113261]
[1752426039020,1.71375121,118410.0,118400.0,0.69113261]
[1752426039211,1.73064102,118410.0,118400.0,0.69113261]
[1752426039342,1.78908625,118410.0,118400.0,0.69113261]
[1752426039549,1.78064102,118410.0,118400.0,0.69113261]
[1752426039916,0.9650546,118410.0,118400.0,0.69113261]
[1752426040103,0.97349954,118410.0,118400.0,0.69113261]
[1752426040322,1.78908611,118410.0,118400.0,0.69113261]
[1752426040520,1.78908604,118410.0,118400.0,0.69113261]
[1752426040681,1.53908604,118410.0,118400.0,0.69113261]
[1752426040838,1.48845604,118410.0,118400.0,0.69113261]
[1752426042103,1.48845596,118410.0,118400.0,0.69113261]
[1752426042299,1.49690112,118410.0,118400.0,0.69113261]
[1752426042505,1.48845646,118410.0,118400.0,0.69113261]
[1752426042940,1.4800113,118410.0,118400.0,0.69113261]
[1752426043157,1.9800113,118410.0,118400.0,0.69113261]
[1752426043367,2.01011686,118410.0,118400.0,0.69113261]
[1752426043585,2.01009401,118410.0,118400.0,0.69113261]
[1752426043778,2.01853917,118410.0,118400.0,0.69113261]
[1752426044226,1.99593837,118410.0,118400.0,0.69113261]
[1752426044427,1.9959383,118410.0,118400.0,0.69113261]
[1752426044720,2.00438346,118410.0,118400.0,0.69113261]
[1752426045128,1.99593866,118410.0,118400.0,0.69113261]
[1752426045329,2.22904871,118410.0,118400.0,0.69113261]
[1752426046029,2.2741634,118410.0,118400.0,0.69113261]
[1752426046437,2.2711634,118410.0,118400.0,0.69185261]
[1752426046640,2.2671634,118410.0,118400.0,0.69085261]
[1752426046844,2.2711634,118410.0,118400.0,0.69185261]
[1752426047048,2.2761634,118410.0,118400.0,0.69285261]
[1752426047258,2.24605784,118410.0,118400.0,0.69285261]
[1752426049763,2.29668784,118410.0,118400.0,0.551736]
[1752426050177,2.42940784,118410.0,118400.0,0.54329939]
[1752426050605,2.42540784,118410.0,118400.0,0.6666223]
[1752426050817,2.42840784,118410.0,118400.0,0.6666223]
[1752426051029,2.42840784,118410.0,118400.0,0.65818521]
[1752426051244,2.42340784,118410.0,118400.0,0.52442521]
[1752426051456,2.40840849,118410.0,118400.0,0.43728603]
[1752426051680,2.41140849,118410.0,118400.0,0.43728603]
[1752426051893,2.41140849,118410.0,118400.0,0.42884894]
[1752426052332,2.41140849,118410.0,118400.0,0.42041185]
[1752426052571,2.41140849,118410.0,118400.0,0.41197476]
[1752426052840,2.41140849,118410.0,118400.0,0.54481476]
[1752426053081,2.41140849,118410.0,118400.0,0.53637767]
[1752426053502,2.41140849,118410.0,118400.0,0.52798058]
[1752426053729,2.41140849,118410.0,118400.0,0.51954349]
[1752426054272,2.41140849,118410.0,118400.0,0.5111064]
[1752426054753,2.41140849,118410.0,118400.0,0.50266931]
[1752426055006,2.73052687,118410.0,118400.0,0.36135222]
[1752426055454,2.73052687,118410.0,118400.0,0.35291513]
[1752426055885,2.72752687,118410.0,118400.0,0.34447804]
[1752426056299,2.41240849,118410.0,118400.0,0.33604095]
[1752426056511,2.40940849,118410.0,118400.0,0.32760232]
[1752426056742,2.41340849,118410.0,118400.0,0.32760232]
[1752426056943,2.40940849,118410.0,118400.0,0.31916369]
[1752426057146,2.40540849,118410.0,118400.0,0.31916369]
[1752426057352,2.41040849,118410.0,118400.0,0.31072506]
[1752426058190,2.50040849,118410.0,118400.0,0.31072506]
[1752426058403,1.86217173,118410.0,118400.0,0.31072506]
[1752426058620,2.50040849,118410.0,118400.0,0.31072506]
[1752426058823,2.51412719,118410.0,118400.0,0.31072506]
[1752426059030,2.88824557,118410.0,118400.0,0.30228643]
[1752426059245,0.70827268,118400.0,118390.0,0.13320166]
[1752426059439,1.97478863,118400.0,118390.0,0.13328591]
[1752426059648,1.97976863,118400.0,118390.0,0.00036591]
[1752426059853,0.83192054,118390.0,118380.0,0.0202]
[1752426060055,1.70202094,118390.0,118380.0,0.15343001]
[1752426060263,1.70501094,118390.0,118380.0,0.15343001]
[1752426060459,1.73035094,118390.0,118380.0,0.15343001]
[1752426060694,1.75292523,118390.0,118380.0,0.15343001]
[1752426061112,1.75692523,118390.0,118380.0,0.15343001]
[1752426061534,1.75692523,118390.0,118380.0,0.1503535]
[1752426061752,1.75692523,118390.0,118380.0,0.00015001]
[1752426061970,0.59,118340.0,118330.0,0.20248]
[1752426062172,0.99454831,118340.0,118330.0,0.20501743]
[1752426063002,1.00317462,118340.0,118330.0,0.33809743]
[1752426063217,1.00617462,118340.0,118330.0,0.33809743]
[1752426063425,1.00617462,118340.0,118330.0,0.37190717]
[1752426063654,1.50617462,118340.0,118330.0,0.37190717]
[1752426063909,1.50617462,118340.0,118330.0,0.37511717]
[1752426064152,2.00617462,118340.0,118330.0,0.37511717]
[1752426064851,2.00617462,118340.0,118330.0,0.39111717]
[1752426065710,1.68705624,118340.0,118330.0,0.39111717]
[1752426065925,1.35162631,118340.0,118330.0,0.71023555]
[1752426066138,1.003,118340.0,118330.0,0.69913555]
[1752426066493,1.003,118340.0,118330.0,0.78456548]
[1752426066900,1.001,118340.0,118330.0,0.78456548]
[1752426067351,1.003,118340.0,118330.0,0.78456548]
[1752426068093,1.003,118340.0,118330.0,0.4654471]
[1752426068338,1.003,118340.0,118330.0,0.78456548]
[1752426068735,1.003,118340.0,118330.0,0.4654471]
[1752426068946,1.003,118340.0,118330.0,0.78456548]
[1752426069364,1.002,118340.0,118330.0,0.78456548]
[1752426070575,1.003,118340.0,118330.0,0.4674471]
[1752426070789,1.003,118340.0,118330.0,0.78656548]
[1752426071805,1.003,118340.0,118330.0,0.4674471]
[1752426072016,1.003,118340.0,118330.0,0.78656548]
[1752426073139,1.003,118340.0,118330.0,0.4674471]
[1752426073392,1.003,118340.0,118330.0,0.78656548]
[1752426075707,1.003,118340.0,118330.0,0.4674471]
[1752426075935,1.003,118340.0,118330.0,0.78656548]
[1752426080815,1.003,118340.0,118330.0,0.78456548]
[1752426081001,1.003,118340.0,118330.0,0.38001717]
[1752426081215,1.003,118340.0,118330.0,0.69913555]
[1752426082183,1.003,118340.0,118330.0,0.38001717]
[1752426082579,1.0383,118340.0,118330.0,0.37511717]
[1752426082808,1.0383,118340.0,118330.0,0.34130743]
[1752426083010,1.003,118340.0,118330.0,0.34130743]
[1752426083553,1.0363,118340.0,118330.0,0.34130743]
[1752426083757,1.35441838,118340.0,118330.0,0.33609743]
[1752426083961,1.0353,118340.0,118330.0,0.37000317]
[1752426084262,1.0373,118340.0,118330.0,0.37600317]
[1752426084538,1.04569771,118340.0,118330.0,0.37600317]
[1752426085341,1.05068771,118340.0,118330.0,0.34205743]
[1752426085541,2.04523602,118340.0,118330.0,0.34245743]
[1752426085938,1.72611764,118340.0,118330.0,0.34245743]
[1752426086151,2.04523602,118340.0,118330.0,0.34245743]
[1752426086482,1.72611764,118340.0,118330.0,0.34245743]
[1752426086684,2.04523602,118340.0,118330.0,0.34245743]